Cogmind - Beta 15 @@@ ROGUE MODE // 2025.07.25 @ 03:01:40 Player: Sunsh1n3 Result: Destroyed by H-55 Commando via exploding Fusion Modulator Performance ------------- Evolutions (2) 1000 Regions Visited (3) 600 Robots Destroyed (27) 135 Value Destroyed (706) 706 Prototype IDs (0) 0 Alien Tech Used (0) 0 Bonus (0) 0 TOTAL SCORE: 2441 Bonus ------- None Cogmind --------- Core Integrity 0/550 Matter 27/300 Energy 100/100 System Corruption 0% Temperature Cool (24) Movement Core (700) Ox13 Location -8/Materials Parts ------- > --- POWER (1) -------- (None) > --- PROPULSION (4) --- (None) > --- UTILITY (4) ------ High-capacity Storage Unit > --- WEAPON (2) ------- (None) > --- INVENTORY (20) --- Ion Engine Light Treads Aluminum Leg Aluminum Leg Compact Wheel Heat Sink Cooling System Cooling System Small Storage Unit Visual Processing Unit Improved Terrain Scan Processor Target Analyzer Power Shielding Light Armor Plating Light Armor Plating Beam Rifle Light Assault Rifle Light Assault Rifle Light Assault Rifle Peak State ------------ > --- POWER ------------ Improved Ion Engine > --- PROPULSION ------- VSS Leg VSS Leg VSS Leg VSS Leg > --- UTILITY ---------- High-capacity Storage Unit Targeting Computer > --- WEAPON ----------- Small Laser Beam Rifle > --- INVENTORY -------- Ion Engine Improved Ion Engine Light Treads Aluminum Leg Aluminum Leg Compact Wheel Heat Sink Small Storage Unit Visual Processing Unit Sensor Array Signal Interpreter Improved Terrain Scan Processor Target Analyzer Power Shielding Light Armor Plating Light Armor Plating Light Assault Rifle Grenade Launcher Grenade Launcher [Rating: 21] Favorites ----------- Power Ion Engine Engine Ion Engine Propulsion VSS Leg Treads Light Treads Leg VSS Leg Utility High-capacity Storage Unit Device Sensor Array Storage High-capacity Storage Unit Processor Targeting Computer Protection Hardened Medium Armor Plating Weapon Small Laser Energy Gun Small Laser Ballistic Gun Minigun Launcher Grenade Launcher Build | -11 -10 -9 -8 ------- Run | Yrd Mat Mat Mat Slots Evolved 4 | . . 2 2 Power . | . . . . Propulsion 2 | . . 2 . Utility 2 | . . . 2 Weapon . | . . . . Parts Attached 33 | 7 4 16 6 Power 3 | 1 . 2 . Engine 3 | 1 . 2 . Core . | . . . . Reactor . | . . . . Propulsion 14 | 2 . 12 . Treads 4 | 2 . 2 . Leg 10 | . . 10 . Wheel . | . . . . Hover . | . . . . Flight . | . . . . Utility 7 | 1 3 . 3 Device 1 | . . . 1 Storage 2 | 1 1 . . Processor 3 | . 2 . 1 Hackware . | . . . . Protection 1 | . . . 1 Artifact . | . . . . Weapon 9 | 3 1 2 3 Energy Gun 3 | 2 . 1 . Energy Cannon . | . . . . Ballistic Gun 4 | 1 . . 3 Ballistic Cannon . | . . . . Launcher 2 | . 1 1 . Special Weapon . | . . . . Impact Weapon . | . . . . Slashing Weapon . | . . . . Piercing Weapon . | . . . . Special Melee Weapon . | . . . . Unidentified Prototypes . | . . . . Parts Lost 19 | . . 9 10 Power 2 | . . 1 1 Propulsion 8 | . . 4 4 Utility 3 | . . . 3 Weapon 6 | . . 4 2 Highest Loss Streak 9 | . . 4 9 To Critical Strikes . | . . . . Average Backups 14 | 2 8 17 18 Power 1 | . 1 1 1 Propulsion 3 | 1 3 3 4 Utility 6 | . 1 8 10 Weapon 2 | . 2 3 3 Tool/Special . | . . . . Unused Backups 14 | . . 1 13 Power 1 | . . 1 . Propulsion 2 | . . . 2 Utility 9 | . . . 9 Weapon 2 | . . . 2 Tool/Special . | . . . . Average Slot Usage (%) 91 | . 97 92 77 Engine 11 | . 14 11 6 Treads 10 | . 28 4 . Leg 24 | . . 36 26 Storage 11 | . 14 11 9 Processor 11 | . 11 11 14 Energy Gun 13 | . 25 11 . Ballistic Gun 2 | . . . 14 Launcher 4 | . 2 6 . Peak Build Rating 21 | 6 8 21 20 Average Rating 12 | 4 7 16 16 On Entrance 6 | . 6 8 13 Naked Turns . | . . . . Heaviest Build 61 | 12 49 53 61 Greatest Support 80 | 40 40 80 42 Greatest Overweight (x) 13 | 3 1 4 13 Average Overweight (x) . | . . . 1 Largest Inventory Capacity 20 | 8 20 20 20 Average Capacity 18 | 7 17 20 20 Most Carried 20 | 5 13 20 20 Average Carried 14 | 2 8 17 18 Final Capacity 20 | 8 20 20 20 Final Carried 20 | 5 13 20 19 Class Distribution -------------------- 81% | Mutant 18% | Scavenger-Mutant Dominant Class ---------------- Mutant | -10/Materials Mutant | -9/Materials Scavenger-Mutant | -8/Materials Resources | -11 -10 -9 -8 ----------- Run | Yrd Mat Mat Mat Matter Collected 452 | 228 86 134 4 Remotely . | . . . . Salvage Created 782 | . 68 630 84 Parts 53 | . 4 38 11 Haulers Intercepted 1 | . 1 . . Recyclers Shooed . | . . . . Parts Field Recycled . | . . . . Retrieved Matter . | . . . . Parts Self-Destructed . | . . . . Prevented . | . . . . Kills | -11 -10 -9 -8 ------- Run | Yrd Mat Mat Mat Combat Hostiles Destroyed 21 | . . 20 1 Guns 12 | . . 11 1 AOE 9 | . . 9 . Classes Destroyed 8 | . 2 5 1 Worker 2 | . . 2 . Builder 1 | . . . 1 Hauler 1 | . 1 . . Watcher 2 | . 1 1 . Swarmer 5 | . . 5 . Grunt 10 | . . 10 . Brawler 2 | . . 2 . Sentry 4 | . . 3 1 Best Kill Streak 8 | . 1 8 1 Combat Bots Only 6 | . . 6 1 Max Kills in Single Turn 3 | . 1 3 1 Gunslinging . | . . . . Exploded 3 | . . 3 . Melee . | . . . . Uniques/NPCs Destroyed . | . . . . Combat | -11 -10 -9 -8 -------- Run | Yrd Mat Mat Mat Hostile Shots Fired 249 | . . 157 92 Missed 68 | . . 45 23 Hits 181 | . . 112 69 Melee 5 | . . 5 . Projectile 176 | . . 107 69 AOE 2 | . . . 2 Critical Strikes 3 | . . 2 1 Damage Taken 2838 | . . 1332 1506 Core 906 | . . 314 592 Absorbed by Shields . | . . . . Core Remaining (%) 73 | 100 100 21 . Volleys Fired 92 | . 21 55 16 Largest 2 | . 2 2 2 Hottest 96 | . 80 96 50 Shots Fired 157 | . 42 88 27 Gun 145 | . 41 77 27 Cannon . | . . . . Launcher 12 | . 1 11 . Special . | . . . . Kinetic 27 | . . . 27 Thermal 118 | . 41 77 . Explosive 12 | . 1 11 . Electromagnetic . | . . . . Robot Hit Streak 18 | . 3 18 5 Robot Miss Streak 3 | . 1 3 2 Penetration Max . | . . . . Secondary Targets . | . . . . Shots Hit Robots 82 | . 3 59 20 Core Hits 52 | . 3 43 6 Critical Kills . | . . . . Critical Parts Destroyed . | . . . . Critical Strikes 1 | . . 1 . Burn 1 | . . 1 . Melee Attacks . | . . . . Impact . | . . . . Slashing . | . . . . Piercing . | . . . . Sneak Attacks . | . . . . Combat Hostiles . | . . . . Follow-up Attacks . | . . . . Damage Inflicted 1706 | . 73 1277 356 Guns 1017 | . 33 629 355 Cannons . | . . . . Explosions 550 | . 40 510 . Melee . | . . . . Ramming 139 | . . 138 1 Kinetic 355 | . . . 355 Thermal 662 | . 33 629 . Explosive 550 | . 40 510 . Electromagnetic . | . . . . Impact . | . . . . Slashing . | . . . . Piercing . | . . . . Highest Corruption . | . . . . Average Corruption . | . . . . Corruption Purged . | . . . . Corruption Blocked . | . . . . Overload Shots . | . . . . Overflow Damage . | . . . . Projectiles . | . . . . Explosions . | . . . . Melee . | . . . . Knockbacks . | . . . . Impact . | . . . . Kinetic . | . . . . Secondary . | . . . . Self-Inflicted Damage 29 | . . 29 . Shots 3 | . . 3 . Rammed 2 | . . . 2 Targets Rammed 25 | . . 22 3 Kicked 23 | . . 22 1 Crushed . | . . . . Highest Temperature 198 | . 144 198 20 Average Temperature 55 | . 60 56 8 Received Heat Transfer 570 | . . 501 69 Siege Activations . | . . . . Martial Activations . | . . . . Shielding Activations . | . . . . Robots Disrupted . | . . . . Combat Hostiles . | . . . . Robots Corrupted . | . . . . Combat Hostiles . | . . . . Parts Fried . | . . . . Impact Corruptions . | . . . . Robots Melted . | . . . . Combat Hostiles . | . . . . Parts Melted 1 | . . 1 . Heat Transferred 1606 | . 75 1531 . Parts Sabotaged . | . . . . Parts Stolen . | . . . . Parts Stripped . | . . . . Power Chain Reactions . | . . . . Alert | -11 -10 -9 -8 ------- Run | Yrd Mat Mat Mat Maximum Alert Level 1 | . . 1 . Low Security (%) 86 | 100 100 74 100 Level 1 13 | . . 25 . Level 2 . | . . . . Level 3 . | . . . . Level 4 . | . . . . Level 5 . | . . . . High Security . | . . . . Max Security . | . . . . Peak Influence 280 | . 23 280 118 Initial 118 | . . . 118 Average 57 | . 2 92 65 Influence Increases 732 | . 54 643 35 Destroy 0b10 Robot/C 420 | . . 400 20 Destroy 0b10 Robot/NC 30 | . 10 15 5 Destroy Leader 106 | . 4 92 10 Successful Hack 14 | . 14 . . Disable Machine 15 | . 15 . . Destroy Structure 72 | . 11 61 . Lose Combat Pursuer 75 | . . 75 . Influence Decreases 732 | . 54 363 315 Entered New Map 162 | . . . 162 Time Decay 417 | . 54 273 90 Lost Part 153 | . . 90 63 Squads Dispatched 2 | . . 1 1 Investigation . | . . . . Extermination . | . . . . Reinforcement 2 | . . 1 1 Assault . | . . . . Garrison . | . . . . Intercept . | . . . . Searches Triggered . | . . . . Construction Impeded . | . . . . Haulers Reinforced . | . . . . Active Scanning Responses . | . . . . Cargo Convoy Interrupts . | . . . . Stealth | -11 -10 -9 -8 --------- Run | Yrd Mat Mat Mat Distress Signals 7 | . . 6 1 Communications Jammed . | . . . . Distress Signals . | . . . . Times Spotted 50 | . 4 35 11 Peak Tracking Total 9 | . 3 7 9 Tactical Retreats 4 | . . 4 . Traps | -11 -10 -9 -8 ------- Run | Yrd Mat Mat Mat Traps Triggered . | . . . . Indirectly . | . . . . Trap Hack Attempts . | . . . . Triggered . | . . . . Disarmed . | . . . . Reprogrammed . | . . . . Reused . | . . . . Traps Extracted . | . . . . Installed . | . . . . Triggered . | . . . . Machines | -11 -10 -9 -8 ---------- Run | Yrd Mat Mat Mat Machines Disabled 1 | . 1 . . Max in Single Turn 1 | . 1 . . Machines Repaired . | . . . . Machines Dismantled . | . . . . Machines Sabotaged . | . . . . Overloaded Fab Kills . | . . . . Hacking | -11 -10 -9 -8 --------- Run | Yrd Mat Mat Mat Machines Accessed 2 | . 1 . 1 Terminals 2 | . 1 . 1 Fabricators . | . . . . Repair Stations . | . . . . Recycling Units . | . . . . Scanalyzers . | . . . . Garrison Access . | . . . . Total Hacks 3 | . 1 . 2 Successful 2 | . 1 . 1 Failed 1 | . . . 1 Catastrophic 1 | . . . 1 Database Lockouts . | . . . . Manual 1 | . . . 1 Terminals 3 | . 1 . 2 Fabricators . | . . . . Repair Stations . | . . . . Recycling Units . | . . . . Scanalyzers . | . . . . Garrison Access . | . . . . Terminal Hacks 2 | . 1 . 1 Terminal Index 1 | . 1 . . Alert Level 1 | . . . 1 Fabricator Hacks . | . . . . Repair Station Hacks . | . . . . Recycling Unit Hacks . | . . . . Scanalyzer . | . . . . Garrison Access Hacks . | . . . . Unauthorized Hacks . | . . . . Terminals . | . . . . Fabricators . | . . . . Repair Stations . | . . . . Recycling Units . | . . . . Scanalyzers . | . . . . Garrison Access . | . . . . Data Cores Recovered . | . . . . Used . | . . . . Hacking Detections 2 | . 1 . 1 Full Trace Events . | . . . . Feedback Events . | . . . . Feedback Blocked . | . . . . Robot Schematics Acquired . | . . . . Robots Built . | . . . . Authchips . | . . . . Time . | . . . . Total Robot Build Rating . | . . . . Part Schematics Acquired . | . . . . Parts Built . | . . . . Authchips . | . . . . Time . | . . . . Total Part Build Rating . | . . . . Parts Repaired . | . . . . Time . | . . . . Parts Recycled . | . . . . Recycled Matter . | . . . . Retrieved Matter . | . . . . Retrieved Components . | . . . . Parts Scanalyzed . | . . . . Part Schematics Acquired . | . . . . Parts Damaged . | . . . . Bothacking | -11 -10 -9 -8 ------------ Run | Yrd Mat Mat Mat Used RIF Installer . | . . . . Robots Hacked . | . . . . Non-combat . | . . . . Combat . | . . . . Robot Hacks Applied . | . . . . Relay Couplers Released . | . . . . Fabnet Peak Effective % . | . . . . Robots Rewired . | . . . . Allies Hacked . | . . . . Hacks Repelled . | . . . . Allies | -11 -10 -9 -8 -------- Run | Yrd Mat Mat Mat Total Allies . | . . . . Largest Group . | . . . . Highest-Rated Group . | . . . . Highest-Rated Ally . | . . . . Total Orders . | . . . . Ally Attacks . | . . . . Total Damage . | . . . . Kills . | . . . . Allies Corrupted . | . . . . Allies Melted . | . . . . Intel | -11 -10 -9 -8 ------- Run | Yrd Mat Mat Mat Active Infowar (turns) 149 | . . . 149 Sensors 149 | . . . 149 Robot Analysis Total . | . . . . Derelict Logs Recovered . | . . . . Drone Launches . | . . . . Drone Recoveries . | . . . . Exploration | -11 -10 -9 -8 ------------- Run | Yrd Mat Mat Mat Turns Passed 1651 | 115 455 857 224 Spaces Moved 648 | 62 169 340 77 Core 23 | 21 . . 2 Treads 242 | 41 169 32 . Legs 383 | . . 308 75 Wheels . | . . . . Hover . | . . . . Flight . | . . . . Fastest Speed 50 | 50 160 90 187 Average Speed 188 | 156 215 176 210 Slowest Speed 700 | 200 240 450 700 Overloaded Moves . | . . . . Propulsion Burnouts . | . . . . Robots Hopped . | . . . . Potential Cave-ins . | . . . . Cave-ins Triggered . | . . . . Exploration Rate (%) 19 | 5 31 29 13 Regions Visited 3 Branch Regions . Pre-discovered Areas . | . . . . Known Exits Taken . | . . . . Unknown Exits Taken 3 | 1 1 1 . Scrap Searched . | . . . . Spaces Dug . | . . . . Terrain Destroyed 67 | . 10 57 . Melee . | . . . . Projectile . | . . . . AOE 67 | . 10 57 . Terrain Rammed . | . . . . Walls Destroyed . | . . . . Machines Disabled . | . . . . Actions | -11 -10 -9 -8 --------- Run | Yrd Mat Mat Mat Total 908 | 77 217 506 108 Wait 76 | 4 16 55 1 Move 645 | 61 168 339 77 Hop . | . . . . Pick Up 25 | 4 7 12 2 Fast Attach 12 | 7 1 4 . Attach 14 | . 1 8 5 Detach 4 | 1 1 2 . Swap 11 | . 2 7 2 Drop 4 | . . 2 2 Fire 92 | . 21 55 16 Melee . | . . . . Ram 2 | . . . 2 Kick 23 | . . 22 1 Crush . | . . . . Escape Stasis . | . . . . Rewire . | . . . . Trap . | . . . . Miscellaneous . | . . . . Route ------- -11/Scrapyard -10/Materials (discovered 2 exits: [*Mat] / [*Min]) -9/Materials -8/Materials History --------- Turn | Location | Event 40 | -11/Scrapyard | Discovered new exit (range 15) 116 | -11/Scrapyard | Entered Materials 170 | -10/Materials | Discovered new exit (range 6) 317 | -10/Materials | Build established: Mutant 360 | -10/Materials | Discovered new exit (range 12) 571 | -10/Materials | Entered another Materials area 571 | -9/Materials | Evolved 2 slots: Propulsion x2 1095 | -9/Materials | Core integrity fell below 50% 1139 | -9/Materials | Lost 3 parts (2n1w) 1234 | -9/Materials | Lost 4 parts (1p1n2w) 1365 | -9/Materials | Discovered new exit (range 16) 1428 | -9/Materials | Entered another Materials area 1428 | -8/Materials | Evolved 2 slots: Utility x2 1579 | -8/Materials | Build established: Scavenger-Mutant 1648 | -8/Materials | Core integrity fell below 50% 1652 | -8/Materials | Core integrity fell below 20% 1652 | -8/Materials | Destroyed by H-55 Commando via exploding Fusion Modulator Last Messages --------------- 01630_ Slammed into H-55 Commando. 01633_ U-05 Engineer builds a Wall. 01633_ Minigun destroyed. 01635_ Targeting Computer destroyed. 01635_ M-13 Machinist repairs H-61 Shepherd. 01637_ Slammed into H-55 Commando. 01640_ Knocked back. 01641_ K-01 Serf collects debris. 01642_ M-13 Machinist repairs U-05 Engineer Welding Torch. 01645_ Penetrated by Slug. 01647_ Knocked back. 01648_ Penetrated by Slug. 01651_ S-10 Pest destroyed. 01651_ K-01 Serf collects debris. 01652_ Fusion Modulator explodes. 01652_ S-10 Pest destroyed. 01652_ Fusion Modulator explodes. 01652_ R-06 Scavenger destroyed. 01652_ S-10 Pest destroyed. Map ----- +----------------------------------------------------+ | ?????????????????????????????????????????????????? | | ?????????????????????????????????????????????????? | | ?????????????????????????????????????????????????? | | ?????????????????????????????????????????????????? | | ?????????????????????????????????????????????????? | | ?????????????????????????????????????????????????? | | ?????????????????????????????????????????????????? | | ?????????????????????????????????????????????????? | | ?????????????????????????????????????????????????? | | ?????????????????????????????????????????????????? | | ?????????????????????????????????????????????????? | | ?????????????????????????????????????????????????? | | ?????????????????????????????????????????????????? | | ????????????????????????? ???????????????????????? | | ????????????????????????? ???????????????????????? | | ????????????????????????? ???????????????????????? | | ????????????????????????? "??????????????????????? | | ???????????????????????##+############???????????? | | ???????????????????????# ????????????? | | ??????????????????????? ?????????????? | | ??????????????????????## ???????????????? | | ?????????????????????##;;a;;;;;;#????????????????? | | ?????????????????????# ; #????????????????? | | ?????????????????????# * ;##????????????????? | | ?????????????????????# k%%= ; #????????????????? | | ?????????????????????# @ #????????????????? | | ?????????????????????# s #???????????????? | | ?????????????????????# ##???????????????? | | ?????????????????????# %h #????????????????? | | ?????????????????????# = #????????????????? | | ??????????## ???????#r ; #????????????????? | | ????????### #######H#########????????????????? | | ????? !!%*= %=+%=! !=#???????????????? | | ????? |!!% %%% #=* #???????????????? | | ????? % m # #???????????????? | | ??????##### ####### /[? #???????????????? | | ??????????#####???????# # ? #???????????????? | | ???#################### # ??#???????????????? | | ???# ^ #?####?????????????????? | | ???# ^ #??????????????????????? | | ???# [[ """ #??????????????????????? | | ???# [% """ """ #??????????????????????? | | ???# [ """ """ / ?????????????????????? | | ???### " """ #??????????????????????? | | ?????# % #??????????????????????? | | ?????# ^ #??????????????????????? | | ?????# """ #??????????????????????? | | ?????# #"""T"""# """ #??????????????????????? | | ?????# ######### """ # ????????????????????? | | ?????# ??# # """ + ?????????????????????? | +----------------------------------------------------+ Best States ------------- Heat Dissipation 31 Energy Generation 12 Energy Capacity 265 Matter Stores 300 Matter Capacity 300 Sight Range 16 Robot Scan Range 14 Terrain Scan Density 10 Armor Coverage 225 Evasion (%) 57 Targeting Accuracy 5 Recoil Reduction 4 Item Schematics ----------------- None Robot Schematics ------------------ None Fabricated ------------ Nothing Repaired ---------- Nothing Alien Tech Used ----------------- None Achievements -------------- None Challenges ------------ None Game ------ Seed GhostAntigravFlightbrick Manual? 0 Play Time 00:18:34 Cumulative 18.7 hours Start 2025.07.25 @ 02:46:37 End 2025.07.25 @ 03:01:40 Sessions 1 Manual Loads 0 Difficulty Rogue Special Mode None Game No. 42 Rogue 42 Adventurer 0 Explorer 0 Win Type - Total 0 Types 0/0/0/0/0/0/0/0/0/0 Lore% 10 Gallery% 20 Achievement% 17 Wizard Run 0 Options --------- Layout 1 ASCII 0 Keyboard 1 Movement Numpad Keybinds 0 Fullscreen 2 Font 24/Smallcaps Map View 50x35 Zoom Use 0% Tactical HUD 1 Map Filters NONE Filters NONE Steam 1 RUN: 04d94fd2-be81-45ed-bf3d-5d649e4e5197